Cogmind - Beta 10.2 --- EXPLORER MODE // 2021.11.08 @ 08:33:29 Player: REBUS Result: Self-destructed Performance ------------- Evolutions (3) 1500 Regions Visited (6) 1200 Robots Destroyed (54) 270 Value Destroyed (1803) 1803 Prototype IDs (0) 0 Alien Tech Used (0) 0 Bonus (60) 60 TOTAL SCORE: 4833 Bonus ------- Follower Combat Kills 60 Cogmind --------- Core Integrity 624/700 Matter 279/350 Energy 440/440 System Corruption 2% Temperature Cool (0) Movement Walking (160) Ox1 Location -7/Lower Caves Parts ------- > --- POWER (2) -------- Ion Engine Improved Deuterium Engine > --- PROPULSION (3) --- Titanium Leg > --- UTILITY (4) ------ Heat Sink Medium Storage Unit Small Matter Pod Hardened Light Armor Plating > --- WEAPON (5) ------- Gauss Rifle > --- INVENTORY (8) ---- Improved Ion Engine Deuterium Engine Improved Deuterium Engine Structural Scanner Visual Processing Unit Peak State ------------ > --- POWER ------------ Improved Deuterium Engine Improved Deuterium Engine > --- PROPULSION ------- Aluminum Leg Titanium Leg Titanium Leg > --- UTILITY ---------- Heat Sink Medium Storage Unit Small Matter Pod Hardened Light Armor Plating > --- WEAPON ----------- Gatling Laser Heavy Assault Rifle Gauss Rifle Grenade Launcher Missile Launcher > --- INVENTORY -------- Ion Engine Improved Ion Engine Deuterium Engine Small Matter Pod Structural Scanner Visual Processing Unit [Rating: 35] Favorites ----------- Power Improved Deuterium Engine Engine Improved Deuterium Engine Power Core Light Nuclear Core Propulsion Aluminum Leg Leg Aluminum Leg Utility Small Matter Pod Device Heat Sink Storage Small Matter Pod Processor Targeting Computer Protection Weapon Shielding Weapon Light Assault Rifle Energy Gun Gatling Laser Ballistic Gun Light Assault Rifle Launcher Missile Launcher Build | -11 -10 -9 -9 -8 -7 -7 ------- Run | Scr Mat Mat Min Mat Fac Low Slots Evolved 7 | . 1 2 . 2 2 . Power 1 | . . . . . 1 . Propulsion 1 | . . . . 1 . . Utility 2 | . 1 . . 1 . . Weapon 3 | . . 2 . . 1 . Parts Attached 41 | 7 7 5 1 3 18 . Power 10 | 1 1 . . 1 7 . Engine 9 | 1 1 . . . 7 . Core 1 | . . . . 1 . . Reactor . | . . . . . . . Propulsion 10 | 2 1 2 . 1 4 . Treads . | . . . . . . . Leg 10 | 2 1 2 . 1 4 . Wheel . | . . . . . . . Hover . | . . . . . . . Flight . | . . . . . . . Utility 9 | 2 2 1 . 1 3 . Device 2 | . . . . 1 1 . Storage 3 | . 1 1 . . 1 . Processor 1 | 1 . . . . . . Hackware . | . . . . . . . Protection 3 | 1 1 . . . 1 . Artifact . | . . . . . . . Weapon 12 | 2 3 2 1 . 4 . Energy Gun 4 | 1 1 . 1 . 1 . Energy Cannon . | . . . . . . . Ballistic Gun 6 | 1 2 2 . . 1 . Ballistic Cannon . | . . . . . . . Launcher 2 | . . . . . 2 . Special Weapon . | . . . . . . . Impact Weapon . | . . . . . . . Slashing Weapon . | . . . . . . . Piercing Weapon . | . . . . . . . Special Melee Weapon . | . . . . . . . Unidentified Prototypes . | . . . . . . . Parts Lost 9 | . . . . . 6 3 Power . | . . . . . . . Propulsion 3 | . . . . . 2 1 Utility 1 | . . . . . 1 . Weapon 5 | . . . . . 3 2 Highest Loss Streak 3 | . . . . . 3 2 Average Slot Usage (%) 95 | . 95 97 99 100 97 73 Engine 10 | . 12 10 10 5 10 14 Core 1 | . . . . 2 3 . Leg 20 | . 25 19 20 25 19 13 Device 5 | . . . . 8 9 7 Storage 14 | . 5 16 20 16 14 14 Protection 8 | . 20 13 10 8 4 7 Energy Gun 6 | . 10 . 6 8 6 4 Ballistic Gun 21 | . 13 38 32 25 18 7 Launcher 4 | . . . . . 8 5 Naked Turns . | . . . . . . . Heaviest Build 55 | 10 11 20 21 24 55 44 Greatest Support 44 | 20 20 20 20 30 44 34 Greatest Overweight (x) 2 | . . . 1 . 2 1 Average Overweight (x) . | . . . . . . . Largest Inventory Capacity 8 | 4 4 8 8 8 8 8 Average Capacity 7 | 4 4 6 8 8 8 8 Most Carried 8 | 4 4 8 8 8 8 5 Average Carried 6 | 2 3 5 7 7 7 5 Final Capacity 8 | 4 4 8 8 8 8 8 Final Carried 8 | 4 3 8 8 8 5 5 Class Distribution -------------------- 55% | Hacker-Tank 23% | Hacker-Mutant 11% | Scavenger-Gunner 6% | Scavenger-Tank Dominant Class ---------------- Hacker-Mutant | -10/Materials Hacker-Tank | -9/Materials Hacker-Tank | -9/Mines Scavenger-Tank | -8/Materials Hacker-Tank | -7/Factory Hacker-Mutant | -7/Lower Caves Resources | -11 -10 -9 -9 -8 -7 -7 ----------- Run | Scr Mat Mat Min Mat Fac Low Matter Collected 1467 | 217 208 170 62 101 709 . Remotely . | . . . . . . . Salvage Created 1881 | . 214 380 108 294 885 . Parts 116 | . 12 34 8 13 49 . Haulers Intercepted . | . . . . . . . Recyclers Shooed 1 | . . . . 1 . . Parts Field Recycled . | . . . . . . . Retrieved Matter . | . . . . . . . Parts Self-Destructed . | . . . . . . . Prevented . | . . . . . . . Kills | -11 -10 -9 -9 -8 -7 -7 ------- Run | Scr Mat Mat Min Mat Fac Low Combat Hostiles Destroyed 39 | . 7 7 2 4 19 . Guns 32 | . 5 7 2 4 14 . AOE 7 | . 2 . . . 5 . Classes Destroyed 11 | . 3 1 1 1 5 . Worker 5 | . . . 1 . 4 . Builder 1 | . . . . . 1 . Tunneler 1 | . . . . . 1 . Recycler 2 | . . . . . 2 . Watcher 6 | . 1 2 . 2 1 . Swarmer 8 | . 4 . . . 4 . Grunt 18 | . 3 4 2 3 6 . Brawler 3 | . . . . 1 2 . Duelist 1 | . . . . . 1 . Sentry 5 | . . 3 . . 2 . Programmer 4 | . . . . . 4 . Best Kill Streak 7 | . 4 4 2 3 7 . Combat Bots Only 4 | . 4 3 2 2 3 . Max Kills in Single Turn 3 | . 3 1 1 1 3 . Gunslinging 1 | . 1 . . . . . Exploded 2 | . 2 . . . 2 . Melee . | . . . . . . . Uniques/NPCs Destroyed . | . . . . . . . Combat | -11 -10 -9 -9 -8 -7 -7 -------- Run | Scr Mat Mat Min Mat Fac Low Damage Taken 1869 | . 212 181 39 175 932 330 Core 158 | . 22 23 7 30 46 30 Absorbed by Shields . | . . . . . . . Core Remaining (%) 94 | 100 91 . 92 94 . . Volleys Fired 99 | . 14 18 8 15 39 5 Largest 5 | . 2 4 4 4 5 1 Hottest 197 | . 60 83 83 108 197 28 Shots Fired 347 | . 28 64 28 56 166 5 Gun 320 | . 28 64 28 56 139 5 Cannon . | . . . . . . . Launcher 27 | . . . . . 27 . Special . | . . . . . . . Kinetic 256 | . 14 64 28 45 100 5 Thermal 35 | . . . . . 35 . Explosive 27 | . . . . . 27 . Electromagnetic 29 | . 14 . . 11 4 . Robot Hit Streak 42 | . 11 36 28 13 42 22 Robot Miss Streak 3 | . 1 3 2 2 2 . Penetration Max . | . . . . . . . Secondary Targets 6 | . 3 1 . 1 1 . Max Gunslinging Chain 1 | . 1 1 . 1 1 . Shots Hit Robots 264 | . 25 51 22 42 119 5 Core Hits 135 | . 13 20 8 21 73 . Critical Hits 1 | . . 1 . . . . Critical Kills . | . . . . . . . Critical Parts Destroyed 1 | . . 1 . . . . Melee Attacks . | . . . . . . . Impact . | . . . . . . . Slashing . | . . . . . . . Piercing . | . . . . . . . Sneak Attacks . | . . . . . . . Combat Hostiles . | . . . . . . . Follow-up Attacks . | . . . . . . . Damage Inflicted 4342 | . 470 520 151 439 2654 108 Guns 3030 | . 276 520 144 432 1550 108 Cannons . | . . . . . . . Explosions 1263 | . 187 . . . 1076 . Melee . | . . . . . . . Ramming 49 | . 7 . 7 7 28 . Kinetic 1927 | . 139 520 144 265 751 108 Thermal 1019 | . 187 . . . 832 . Explosive 976 | . . . . . 976 . Electromagnetic 371 | . 137 . . 167 67 . Impact . | . . . . . . . Slashing . | . . . . . . . Piercing . | . . . . . . . Highest Corruption 2 | . . . . . 2 2 Average Corruption 1 | . . . . . 1 2 Corruption Purged . | . . . . . . . Effects 11 | . . . . . 8 3 Message Errors 2 | . . . . . 2 . Heat Flow Errors 2 | . . . . . . 2 Energy Discharges 1 | . . . . . . 1 Data Loss (minor) 1 | . . . . . 1 . Targeting Errors 4 | . . . . . 4 . Weapon Failures 1 | . . . . . 1 . Overload Shots . | . . . . . . . Overflow Damage 69 | . 24 . . . 45 . Projectiles . | . . . . . . . Explosions 69 | . 24 . . . 45 . Melee . | . . . . . . . Knockbacks . | . . . . . . . Impact . | . . . . . . . Kinetic . | . . . . . . . Secondary . | . . . . . . . Self-Inflicted Damage 175 | . 3 . 2 . 170 . Shots 5 | . . . . . 5 . Rammed 6 | . 2 . 1 . 3 . Targets Rammed 13 | . 3 . 3 2 5 . Kicked 7 | . 1 . 2 2 2 . Crushed . | . . . . . . . Highest Temperature 234 | . 42 66 44 27 234 155 Average Temperature 53 | . 18 25 18 11 74 71 Received Heat Transfer 720 | . 105 138 33 63 345 36 Siege Activations . | . . . . . . . Robots Corrupted . | . . . . . . . Combat Hostiles . | . . . . . . . Parts Fried 2 | . . . . 2 . . Impact Corruptions . | . . . . . . . Robots Melted . | . . . . . . . Combat Hostiles . | . . . . . . . Parts Melted 1 | . . . . . 1 . Heat Transferred 1875 | . 150 . . . 1725 . Parts Sabotaged . | . . . . . . . Parts Stolen . | . . . . . . . Parts Stripped . | . . . . . . . Power Chain Reactions 4 | . 3 . . . 1 . Missiles Intercepted . | . . . . . . . Alert | -11 -10 -9 -9 -8 -7 -7 ------- Run | Scr Mat Mat Min Mat Fac Low Peak Influence 361 | . 257 361 164 107 195 . Initial 99 | . . 77 99 . 34 . Average 105 | . 160 233 100 46 78 . Maximum Alert Level 1 | . 1 1 . . . . Low Security (%) 87 | 100 73 23 100 100 100 . Level 1 12 | . 26 76 . . . . Level 2 . | . . . . . . . Level 3 . | . . . . . . . Level 4 . | . . . . . . . Level 5 . | . . . . . . . High Security . | . . . . . . . Max Security . | . . . . . . . Squads Dispatched 6 | . . . . . 6 . Investigation . | . . . . . . . Extermination 4 | . . . . . 4 . Reinforcement 2 | . . . . . 2 . Assault . | . . . . . . . Garrison . | . . . . . . . Intercept . | . . . . . . . Construction Impeded 2 | . . . . . 2 . Haulers Reinforced . | . . . . . . . Stealth | -11 -10 -9 -9 -8 -7 -7 --------- Run | Scr Mat Mat Min Mat Fac Low Distress Signals 5 | . 2 1 . 1 1 . Communications Jammed . | . . . . . . . Distress Signals . | . . . . . . . Times Spotted 62 | . 13 11 4 10 23 1 Peak Tracking Total 7 | . 7 5 2 5 4 1 Tactical Retreats 8 | . 4 3 . . 1 . Traps | -11 -10 -9 -9 -8 -7 -7 ------- Run | Scr Mat Mat Min Mat Fac Low Traps Triggered 2 | . . . . . 2 . Indirectly . | . . . . . . . Trap Hack Attempts . | . . . . . . . Triggered . | . . . . . . . Disarmed . | . . . . . . . Reprogrammed . | . . . . . . . Reused . | . . . . . . . Traps Extracted . | . . . . . . . Installed . | . . . . . . . Triggered . | . . . . . . . Machines | -11 -10 -9 -9 -8 -7 -7 ---------- Run | Scr Mat Mat Min Mat Fac Low Machines Disabled 8 | . . . . . 8 . Max in Single Turn 5 | . . . . . 5 . Machines Sabotaged . | . . . . . . . Garrisons Compromised . | . . . . . . . Overloaded Fab Kills . | . . . . . . . Fab Network Shutdowns . | . . . . . . . Hacking | -11 -10 -9 -9 -8 -7 -7 --------- Run | Scr Mat Mat Min Mat Fac Low Machines Accessed 3 | . 1 . . . 2 . Terminals 2 | . 1 . . . 1 . Fabricators . | . . . . . . . Repair Stations . | . . . . . . . Recycling Units 1 | . . . . . 1 . Scanalyzers . | . . . . . . . Garrison Access . | . . . . . . . Total Hacks 7 | . 4 . . . 3 . Successful 3 | . 1 . . . 2 . Failed 4 | . 3 . . . 1 . Catastrophic . | . . . . . . . Database Lockouts . | . . . . . . . Manual . | . . . . . . . Terminals 5 | . 4 . . . 1 . Fabricators . | . . . . . . . Repair Stations . | . . . . . . . Recycling Units 2 | . . . . . 2 . Scanalyzers . | . . . . . . . Garrison Access . | . . . . . . . Terminal Hacks 2 | . 1 . . . 1 . Alert Level 1 | . 1 . . . . . Locate Traps 1 | . . . . . 1 . Fabricator Hacks . | . . . . . . . Repair Station Hacks . | . . . . . . . Recycling Unit Hacks 1 | . . . . . 1 . Process 1 | . . . . . 1 . Scanalyzer . | . . . . . . . Garrison Access Hacks . | . . . . . . . Unauthorized Hacks . | . . . . . . . Terminals . | . . . . . . . Fabricators . | . . . . . . . Repair Stations . | . . . . . . . Recycling Units . | . . . . . . . Scanalyzers . | . . . . . . . Garrison Access . | . . . . . . . Data Cores Recovered . | . . . . . . . Used . | . . . . . . . Hacking Detections 2 | . 1 . . . 1 . Full Trace Events . | . . . . . . . Feedback Events . | . . . . . . . Feedback Blocked . | . . . . . . . Robot Schematics Acquired . | . . . . . . . Robots Built . | . . . . . . . Matter . | . . . . . . . Time . | . . . . . . . Total Robot Build Rating . | . . . . . . . Part Schematics Acquired . | . . . . . . . Parts Built . | . . . . . . . Matter . | . . . . . . . Time . | . . . . . . . Total Part Build Rating . | . . . . . . . Parts Repaired . | . . . . . . . Time . | . . . . . . . Parts Recycled . | . . . . . . . Recycled Matter 32 | . . . . . 32 . Retrieved Matter . | . . . . . . . Retrieved Components . | . . . . . . . Parts Scanalyzed . | . . . . . . . Part Schematics Acquired . | . . . . . . . Parts Damaged . | . . . . . . . Bothacking | -11 -10 -9 -9 -8 -7 -7 ------------ Run | Scr Mat Mat Min Mat Fac Low Used RIF Installer . | . . . . . . . Robots Hacked . | . . . . . . . Non-combat . | . . . . . . . Combat . | . . . . . . . Robot Hacks Applied . | . . . . . . . Relay Couplers Released . | . . . . . . . Robots Rewired . | . . . . . . . Allies Hacked . | . . . . . . . Hacks Repelled . | . . . . . . . Allies | -11 -10 -9 -9 -8 -7 -7 -------- Run | Scr Mat Mat Min Mat Fac Low Total Allies 3 | . . . 3 . . . Largest Group 3 | . . . 3 1 . . Highest-Rated Group 40 | . . . 40 16 . . Highest-Rated Ally 16 | . . . 16 16 . . Total Orders 2 | . . . 2 . . . ROAM 1 | . . . 1 . . . FOLLOW 1 | . . . 1 . . . Ally Attacks 16 | . . . 13 3 . . Total Damage 195 | . . . 168 27 . . Kills 2 | . . . 2 . . . Allies Corrupted . | . . . . . . . Allies Melted . | . . . . . . . Intel | -11 -10 -9 -9 -8 -7 -7 ------- Run | Scr Mat Mat Min Mat Fac Low Robot Analysis Total . | . . . . . . . Derelict Logs Recovered . | . . . . . . . Drone Launches . | . . . . . . . Drone Recoveries . | . . . . . . . Exploration | -11 -10 -9 -9 -8 -7 -7 ------------- Run | Scr Mat Mat Min Mat Fac Low Turns Passed 3602 | 115 394 397 517 203 1680 296 Spaces Moved 2315 | 91 279 272 346 124 1016 187 Core 11 | 11 . . . . . . Treads . | . . . . . . . Legs 2304 | 80 279 272 346 124 1016 187 Wheels . | . . . . . . . Hover . | . . . . . . . Flight . | . . . . . . . Fastest Speed 50 | 50 120 120 120 120 123 130 Average Speed 137 | 111 120 120 140 120 147 152 Slowest Speed 185 | 120 120 120 150 120 185 160 Overloaded Moves . | . . . . . . . Propulsion Burnouts . | . . . . . . . Robots Hopped . | . . . . . . . Cave-ins Triggered . | . . . . . . . Exploration Rate (%) 23 | 4 29 14 68 18 16 15 Regions Visited 6 Branch Regions 2 Pre-discovered Areas . | . . . . . . . Known Exits Taken 6 | 1 1 1 1 1 1 . Unknown Exits Taken . | . . . . . . . Scrap Searched . | . . . . . . . Spaces Dug . | . . . . . . . Terrain Destroyed 136 | . 8 . . . 128 . Melee . | . . . . . . . Projectile . | . . . . . . . AOE 136 | . 8 . . . 128 . Terrain Rammed . | . . . . . . . Walls Destroyed . | . . . . . . . Machines Disabled . | . . . . . . . Actions | -11 -10 -9 -9 -8 -7 -7 --------- Run | Scr Mat Mat Min Mat Fac Low Total 2517 | 101 311 309 362 149 1093 192 Wait 3 | . . . 3 . . . Move 2309 | 90 278 271 345 123 1015 187 Hop . | . . . . . . . Pick Up 28 | 4 3 11 1 4 5 . Fast Attach 11 | 7 . . . . 4 . Attach 20 | . 3 5 1 3 8 . Detach 5 | . 2 . . . 3 . Swap 10 | . 4 . . . 6 . Drop 19 | . 4 4 1 2 8 . Fire 99 | . 14 18 8 15 39 5 Melee . | . . . . . . . Ram . | . . . . . . . Kick 13 | . 3 . 3 2 5 . Crush . | . . . . . . . Escape Stasis . | . . . . . . . Rewire . | . . . . . . . Trap . | . . . . . . . Miscellaneous . | . . . . . . . Route ------- -11/Scrapyard -10/Materials -9/Materials -9/Mines -8/Materials -7/Factory -7/Lower Caves History --------- Turn | Location | Event 2 | -11/Scrapyard | Met Revision 17 11 | -11/Scrapyard | Identified exit to Materials 11 | -11/Scrapyard | Discovered exit to Materials (range 16) 116 | -11/Scrapyard | Entered Materials 116 | -10/Materials | Evolved 1 slot: Utility x1 311 | -10/Materials | Build established: Hacker-Mutant 390 | -10/Materials | Identified exit to Materials 390 | -10/Materials | Discovered exit to Materials (range 13) 510 | -10/Materials | Entered another Materials area 510 | -9/Materials | Evolved 2 slots: Weapon x2 817 | -9/Materials | Build established: Hacker-Tank 875 | -9/Materials | Identified exit to Mines 875 | -9/Materials | Discovered exit to Mines (range 15) 907 | -9/Materials | Entered Mines 936 | -9/Mines | Assisted by bots powering up and referring to "LRC-V3" 1406 | -9/Mines | Identified exit to Materials 1406 | -9/Mines | Discovered exit to Materials (range 10) 1424 | -9/Mines | Entered Materials 1424 | -8/Materials | Accompanied by 1 ally 1424 | -8/Materials | Evolved 2 slots: Propulsion x1, Utility x1 1607 | -8/Materials | Identified exit to Factory 1607 | -8/Materials | Discovered exit to Factory (range 16) 1627 | -8/Materials | Entered Factory 1627 | -7/Factory | Evolved 2 slots: Power x1, Weapon x1 2693 | -7/Factory | Build established: Scavenger-Gunner 3196 | -7/Factory | Build established: Hacker-Tank 3277 | -7/Factory | Identified exit to Lower Caves 3277 | -7/Factory | Discovered exit to Lower Caves (range 12) 3307 | -7/Factory | Entered Lower Caves 3318 | -7/Lower Caves | Lost 3 parts (1n2w) 3483 | -7/Lower Caves | Spotted B-75 Beast 3576 | -7/Lower Caves | Build established: Hacker-Mutant 3603 | -7/Lower Caves | Self-destructed Last Messages --------------- 03291_ U-05 Engineer builds a Wall. 03294_ U-05 Engineer lays Concrete. 03295_ U-05 Engineer builds a Door. 03296_ U-05 Engineer lays Concrete. 03297_ U-05 Engineer builds a Wall. 03298_ U-05 Engineer lays Concrete. 03299_ U-05 Engineer builds a Wall. 03300_ U-05 Engineer lays Concrete. 03303_ U-05 Engineer builds a Wall. LOCATION=LOWER CAVES GOAL=ESCAPE 03337_ System corrupted: Heat flow error (+182). 03416_ System corrupted: Heat flow error (+112). 03501_ Gatling Laser destroyed. 03503_ Slug penetrates B-75 Beast. 03522_ Missile Launcher destroyed. 03559_ System corrupted: Energy discharge (-149). 03582_ Slug penetrates B-75 Beast. 03584_ Titanium Leg destroyed. 03584_ Slug penetrates B-75 Beast. Map ----- +----------------------------------------------------+ | ? #????????????## ###????????????????????? | | ? #??????????## ##???????????????????? | | ?? ##??????### #???????????????????? | | ??? #????## ##???????????????????? | | ??? ##### #????????????????????? | | ??? #### #???????????????????? | | ??????## #??## ????????????????? | | ???????# ###### #??????????????? | | ???????## ### #######??????????????? | | ????????# #????????????????????? | | ?###???## #????????????????????? | | ## ##?## ## ## ##????????????????????? | | # ### ########? #?????????????????????? | | # #?# ##?###????# #????????????????????? | | #?# #### #####?## ???????????????????? | | #?# ## ##??#### ?????????????????? | | # " #???????## ?????????????????? | | ### ##??????????????????????????? | | ##### ### ##?????????????????????????? | | #??#####?# ##????????????????????????? | | ##???##### BB #????????????????????????? | | "#??## BB ##???????????????????????? | | ###" "### ;; #???????????????????????? | | ??## "##; ##??????????????????????? | | ???## ##??# ;#??????????????????????? | | ????## #??## @#??????????????????????? | | ?????#### ##??# #??????????????????????? | | ????????#### ##???# #??????????????????????? | | ???????????######????######??????????????????????? | | ?????????????????????????????????????????????????? | | ?????????????????????????????????????????????????? | | ?????????????????????????????????????????????????? | | ?????????????????????????????????????????????????? | | ?????????????????????????????????????????????????? | | ?????????????????????????????????????????????????? | | ?????????????????????????????????????????????????? | | ?????????????????????????????????????????????????? | | ?????????????????????????????????????????????????? | | ?????????????????????????????????????????????????? | | ?????????????????????????????????????????????????? | | ?????????????????????????????????????????????????? | | ?????????????????????????????????????????????????? | | ?????????????????????????????????????????????????? | | ?????????????????????????????????????????????????? | | | | | | | | | | | | | +----------------------------------------------------+ Best States ------------- Heat Dissipation 58 Energy Generation 27 Energy Capacity 480 Matter Stores 350 Matter Capacity 350 Sight Range 16 Terrain Scan Density 10 Armor Coverage 150 Resistance: KI 35 Resistance: TH 35 Resistance: EX 35 Resistance: EM 35 Resistance: I 35 Resistance: S 35 Resistance: P 35 Weapon Shielding 33 Evasion (%) 40 Targeting Accuracy 5 Offensive Hacking 20 Item Schematics ----------------- None Robot Schematics ------------------ None Fabricated ------------ Nothing Alien Tech Used ----------------- None Achievements -------------- None Challenges ------------ None Game ------ Seed SwarmGatlingRouter Manual? 0 Play Time 01:39:22 Cumulative 20.0 hours Start 2021.11.06 @ 12:20:52 End 2021.11.08 @ 08:33:29 Sessions 11 Manual Loads 0 Difficulty Explorer Special Mode None Game No. 17 Rogue 0 Adventurer 0 Explorer 17 Win Type - Total 0 Types 0/0/0/0/0/0/0/0/0 Lore% 5 Gallery% 21 Achievement% 16 Wizard Run 0 Options --------- ASCII 0 Keyboard 1 Movement Arrows Keybinds 0 Fullscreen 1 Font 18/SmallcapsGlow Map View 76x50 Tactical HUD 1 Map Filters NONE Filters NONE Steam 1 RUN: 8e9aaeb2-d5cc-4909-bce0-38ff4ae5fd09